[Event "Titled Tuesday Blitz February 21 Late 2023"]
[White "reevecanada"]
[Black "Clawitter, Craig"]
[BlackFideId "2023105"]
[WhiteElo "2441"]
[BlackElo "2050"]
[Result "1-0"]
[Round "09"]
[TimeControl "180+2"]
[Date "2023.02.21"]
[WhiteClock "0:01:13"]
[BlackClock "0:00:03"]

1. e4 {[%clk 0:02:25]}  e6 {[%clk 0:02:58]} 2. Nf3 {[%clk 0:02:23]}  d5 {[%clk 0:02:58]} 3. Nc3 {[%clk 0:02:24]}  Nf6 {[%clk 0:02:58]} 4. e5 {[%clk 0:02:23]}  Nfd7 {[%clk 0:02:58]} 5. d4 {[%clk 0:02:23]}  c5 {[%clk 0:02:58]} 6. Bg5 {[%clk 0:02:24]}  Qb6 {[%clk 0:02:58]} 7. dxc5 {[%clk 0:02:24]}  Bxc5 {[%clk 0:02:57]} 8. Qd2 {[%clk 0:02:24]}  Nc6 {[%clk 0:02:57]} 9. Bb5 {[%clk 0:02:22]}  O-O {[%clk 0:02:51]} 10. O-O {[%clk 0:02:15]}  Ndxe5 {[%clk 0:02:36]} 11. Nxe5 {[%clk 0:02:10]}  Nxe5 {[%clk 0:02:35]} 12. Be2 {[%clk 0:02:07]}  Bd7 {[%clk 0:02:20]} 13. h4 {[%clk 0:02:04]}  Rac8 {[%clk 0:02:11]} 14. a3 {[%clk 0:02:03]}  Bd4 {[%clk 0:02:05]} 15. h5 {[%clk 0:01:59]}  h6 {[%clk 0:01:42]} 16. Bxh6 {[%clk 0:01:50]}  gxh6 {[%clk 0:01:43]} 17. Qxh6 {[%clk 0:01:49]}  f5 {[%clk 0:00:32]} 18. Qg5+ {[%clk 0:01:46]}  Kh7 {[%clk 0:00:27]} 19. h6 {[%clk 0:01:40]}  Rf7 {[%clk 0:00:23]} 20. Bh5 {[%clk 0:01:37]}  Rg8 {[%clk 0:00:20]} 21. Qf4 {[%clk 0:01:36]}  Ng6 {[%clk 0:00:15]} 22. Qd2 {[%clk 0:01:33]}  Bxc3 {[%clk 0:00:13]} 23. bxc3 {[%clk 0:01:30]}  Rf6 {[%clk 0:00:13]} 24. Rab1 {[%clk 0:01:29]}  Qc7 {[%clk 0:00:12]} 25. Qd4 {[%clk 0:01:28]}  Nf4 {[%clk 0:00:08]} 26. Qxf6 {[%clk 0:01:24]}  Nxh5 {[%clk 0:00:08]} 27. Qh4 {[%clk 0:01:21]}  Nf4 {[%clk 0:00:07]} 28. g3 {[%clk 0:01:20]}  Ne2+ {[%clk 0:00:06]} 29. Kg2 {[%clk 0:01:20]}  Nxc3 {[%clk 0:00:07]} 30. Qe7+ {[%clk 0:01:19]}  Kh8 {[%clk 0:00:07]} 31. h7 {[%clk 0:01:17]}  Rg7 {[%clk 0:00:06]} 32. Qf8+ {[%clk 0:01:17]}  Kxh7 {[%clk 0:00:07]} 33. Rh1+ {[%clk 0:01:16]}  Kg6 {[%clk 0:00:07]} 34. Rb4 {[%clk 0:01:14]}  Bc6 {[%clk 0:00:06]} 35. Rbh4 {[%clk 0:01:13]}  d4+ {[%clk 0:00:06]} 36. f3 {[%clk 0:01:13]}  Bxf3+ {[%clk 0:00:03]} 37. Kxf3 {[%clk 0:01:13]}  Qc6+ {[%clk 0:00:04]} 38. Kf2 {[%clk 0:01:13]}  Ne4+ {[%clk 0:00:03]} 39. Kg1 {[%clk 0:01:13]} 1-0


[Site "https://www.chess.com"]

[Event "Titled Tuesday Blitz February 21 Late 2023"]
[White "De Souza, Cristiano Gomes"]
[Black "sissahungrychess"]
[WhiteFideId "2151758"]
[WhiteElo "2018"]
[BlackElo "2453"]
[Result "0-1"]
[Round "09"]
[TimeControl "180+2"]
[Date "2023.02.21"]
[WhiteClock "0:00:59"]
[BlackClock "0:00:22"]

1. d4 {[%clk 0:02:59]}  Nf6 {[%clk 0:02:59]} 2. c4 {[%clk 0:02:59]}  e6 {[%clk 0:03:00]} 3. Nf3 {[%clk 0:02:56]}  b6 {[%clk 0:02:58]} 4. g3 {[%clk 0:02:51]}  Ba6 {[%clk 0:02:56]} 5. b3 {[%clk 0:02:49]}  c6 {[%clk 0:02:55]} 6. Bg2 {[%clk 0:02:47]}  d5 {[%clk 0:02:56]} 7. Ne5 {[%clk 0:02:45]}  Nfd7 {[%clk 0:02:54]} 8. Nxd7 {[%clk 0:02:45]}  Nxd7 {[%clk 0:02:53]} 9. Nd2 {[%clk 0:02:44]}  Bb4 {[%clk 0:02:51]} 10. cxd5 {[%clk 0:02:42]}  cxd5 {[%clk 0:02:49]} 11. O-O {[%clk 0:02:41]}  Bc3 {[%clk 0:02:45]} 12. Rb1 {[%clk 0:02:41]}  Bxd4 {[%clk 0:02:46]} 13. Re1 {[%clk 0:02:39]}  O-O {[%clk 0:02:31]} 14. e4 {[%clk 0:02:39]}  Bd3 {[%clk 0:02:03]} 15. Rb2 {[%clk 0:02:34]}  Qf6 {[%clk 0:01:48]} 16. Nf3 {[%clk 0:02:27]}  Bxb2 {[%clk 0:01:48]} 17. Bxb2 {[%clk 0:02:25]}  Qxb2 {[%clk 0:01:49]} 18. Qxd3 {[%clk 0:02:26]}  dxe4 {[%clk 0:01:48]} 19. Qxd7 {[%clk 0:02:25]}  exf3 {[%clk 0:01:48]} 20. Bxf3 {[%clk 0:02:25]}  Rad8 {[%clk 0:01:34]} 21. Qxa7 {[%clk 0:02:21]}  Rd2 {[%clk 0:01:28]} 22. Qxb6 {[%clk 0:02:19]}  Qxa2 {[%clk 0:01:27]} 23. Qe3 {[%clk 0:02:17]}  Rb2 {[%clk 0:01:25]} 24. g4 {[%clk 0:02:06]}  Rxb3 {[%clk 0:01:24]} 25. Qe4 {[%clk 0:02:04]}  Qa5 {[%clk 0:01:16]} 26. Kg2 {[%clk 0:02:01]}  Rb2 {[%clk 0:00:56]} 27. Re3 {[%clk 0:01:58]}  Qc5 {[%clk 0:00:51]} 28. h4 {[%clk 0:01:57]}  g6 {[%clk 0:00:49]} 29. g5 {[%clk 0:01:53]}  Rd8 {[%clk 0:00:47]} 30. Bg4 {[%clk 0:01:51]}  Rdd2 {[%clk 0:00:44]} 31. Bxe6 {[%clk 0:01:21]}  Rxf2+ {[%clk 0:00:44]} 32. Kg3 {[%clk 0:01:14]}  Qd6+ {[%clk 0:00:37]} 33. Kg4 {[%clk 0:01:01]}  Rg2+ {[%clk 0:00:23]} 34. Kh3 {[%clk 0:00:59]}  Qh2# {[%clk 0:00:22]} 0-1


[Site "https://www.chess.com"]

[Event "Titled Tuesday Blitz February 21 Late 2023"]
[White "Kujawski, Adam"]
[Black "Wang, Alexander J"]
[WhiteFideId "1100920"]
[BlackFideId "30955270"]
[WhiteElo "2173"]
[BlackElo "1815"]
[Result "1-0"]
[Round "09"]
[TimeControl "180+2"]
[Date "2023.02.21"]
[WhiteClock "0:01:25"]
[BlackClock "0:00:57"]

1. e4 {[%clk 0:02:51]}  c5 {[%clk 0:02:59]} 2. Nf3 {[%clk 0:02:51]}  d6 {[%clk 0:02:59]} 3. d4 {[%clk 0:02:51]}  cxd4 {[%clk 0:03:00]} 4. Nxd4 {[%clk 0:02:52]}  Nf6 {[%clk 0:03:00]} 5. Nc3 {[%clk 0:02:51]}  g6 {[%clk 0:03:01]} 6. Be3 {[%clk 0:02:51]}  Bg7 {[%clk 0:03:01]} 7. f3 {[%clk 0:02:51]}  O-O {[%clk 0:03:01]} 8. Qd2 {[%clk 0:02:49]}  Nc6 {[%clk 0:03:01]} 9. O-O-O {[%clk 0:02:49]}  d5 {[%clk 0:03:02]} 10. exd5 {[%clk 0:02:48]}  Nxd5 {[%clk 0:03:01]} 11. Nxc6 {[%clk 0:02:48]}  bxc6 {[%clk 0:03:02]} 12. Bd4 {[%clk 0:02:49]}  e5 {[%clk 0:03:01]} 13. Bc5 {[%clk 0:02:49]}  Re8 {[%clk 0:03:00]} 14. Nxd5 {[%clk 0:02:47]}  cxd5 {[%clk 0:02:54]} 15. Qxd5 {[%clk 0:02:47]}  Qxd5 {[%clk 0:02:54]} 16. Rxd5 {[%clk 0:02:46]}  Be6 {[%clk 0:02:54]} 17. Rd6 {[%clk 0:02:46]}  Bf8 {[%clk 0:02:47]} 18. Rc6 {[%clk 0:02:45]}  Bd5 {[%clk 0:02:29]} 19. Rc7 {[%clk 0:02:43]}  Bh6+ {[%clk 0:02:29]} 20. Kb1 {[%clk 0:02:30]}  e4 {[%clk 0:02:25]} 21. fxe4 {[%clk 0:02:14]}  Bxe4 {[%clk 0:01:55]} 22. Bc4 {[%clk 0:02:10]}  Bxg2 {[%clk 0:01:41]} 23. Bxf7+ {[%clk 0:02:06]}  Kh8 {[%clk 0:01:41]} 24. Bd4+ {[%clk 0:02:00]}  Bg7 {[%clk 0:01:34]} 25. Bxg7+ {[%clk 0:02:00]}  Kxg7 {[%clk 0:01:34]} 26. Bxe8+ {[%clk 0:02:00]}  Kh8 {[%clk 0:01:34]} 27. Re1 {[%clk 0:01:51]}  Rd8 {[%clk 0:01:28]} 28. Bc6 {[%clk 0:01:45]}  Bxc6 {[%clk 0:01:19]} 29. Rxc6 {[%clk 0:01:45]}  Rd7 {[%clk 0:01:16]} 30. Rce6 {[%clk 0:01:40]}  Rd5 {[%clk 0:01:13]} 31. Re7 {[%clk 0:01:38]}  a5 {[%clk 0:01:12]} 32. Ra7 {[%clk 0:01:36]}  Rd8 {[%clk 0:01:10]} 33. a4 {[%clk 0:01:35]}  Rb8 {[%clk 0:01:05]} 34. Ree7 {[%clk 0:01:32]}  Kg8 {[%clk 0:01:03]} 35. Rg7+ {[%clk 0:01:31]}  Kf8 {[%clk 0:01:03]} 36. Rxh7 {[%clk 0:01:31]}  Kg8 {[%clk 0:01:01]} 37. Rag7+ {[%clk 0:01:30]}  Kf8 {[%clk 0:01:02]} 38. Rh8+ {[%clk 0:01:29]}  Kxg7 {[%clk 0:01:03]} 39. Rxb8 {[%clk 0:01:29]}  Kh6 {[%clk 0:01:03]} 40. Rb5 {[%clk 0:01:29]}  g5 {[%clk 0:01:02]} 41. Rxa5 {[%clk 0:01:29]}  Kh5 {[%clk 0:01:02]} 42. Rd5 {[%clk 0:01:29]}  Kh4 {[%clk 0:01:01]} 43. Rd3 {[%clk 0:01:28]}  g4 {[%clk 0:01:01]} 44. a5 {[%clk 0:01:28]}  Kh5 {[%clk 0:00:59]} 45. a6 {[%clk 0:01:28]}  Kh4 {[%clk 0:01:00]} 46. a7 {[%clk 0:01:28]}  g3 {[%clk 0:01:01]} 47. hxg3+ {[%clk 0:01:28]}  Kh3 {[%clk 0:01:01]} 48. g4+ {[%clk 0:01:27]}  Kh4 {[%clk 0:01:02]} 49. g5 {[%clk 0:01:28]}  Kh5 {[%clk 0:01:02]} 50. g6 {[%clk 0:01:28]}  Kh6 {[%clk 0:01:03]} 51. g7 {[%clk 0:01:28]}  Kh7 {[%clk 0:01:02]} 52. g8=Q+ {[%clk 0:01:28]}  Kxg8 {[%clk 0:01:03]} 53. a8=Q+ {[%clk 0:01:28]}  Kf7 {[%clk 0:01:03]} 54. Qf3+ {[%clk 0:01:28]}  Ke6 {[%clk 0:01:04]} 55. Qe4+ {[%clk 0:01:27]}  Kf6 {[%clk 0:01:04]} 56. Rf3+ {[%clk 0:01:28]}  Kg5 {[%clk 0:01:04]} 57. Qf4+ {[%clk 0:01:28]}  Kh5 {[%clk 0:01:02]} 58. Rh3+ {[%clk 0:01:26]}  Kg6 {[%clk 0:00:59]} 59. Rg3+ {[%clk 0:01:26]}  Kh5 {[%clk 0:00:58]} 60. Qg4+ {[%clk 0:01:25]}  Kh6 {[%clk 0:00:57]} 61. Qg6# {[%clk 0:01:25]} 1-0


[Site "https://www.chess.com"]

[Event "Titled Tuesday Blitz February 21 Late 2023"]
[White "Michalski, Olaf"]
[Black "Skaric, Djuro"]
[WhiteFideId "1106740"]
[BlackFideId "934569"]
[WhiteElo "2273"]
[BlackElo "2334"]
[Result "0-1"]
[Round "09"]
[TimeControl "180+2"]
[Date "2023.02.21"]
[WhiteClock "0:00:01"]
[BlackClock "0:01:29"]

1. d4 {[%clk 0:03:00]}  g6 {[%clk 0:02:58]} 2. c4 {[%clk 0:03:00]}  Bg7 {[%clk 0:02:58]} 3. Nc3 {[%clk 0:03:01]}  d6 {[%clk 0:02:59]} 4. e4 {[%clk 0:03:01]}  Nf6 {[%clk 0:03:00]} 5. Nf3 {[%clk 0:02:59]}  O-O {[%clk 0:03:00]} 6. Be2 {[%clk 0:03:00]}  Nc6 {[%clk 0:03:00]} 7. d5 {[%clk 0:02:59]}  Ne5 {[%clk 0:02:59]} 8. Nxe5 {[%clk 0:03:00]}  dxe5 {[%clk 0:03:00]} 9. O-O {[%clk 0:02:56]}  h6 {[%clk 0:03:00]} 10. Be3 {[%clk 0:02:54]}  Ne8 {[%clk 0:03:00]} 11. Qd2 {[%clk 0:02:50]}  Kh7 {[%clk 0:02:59]} 12. c5 {[%clk 0:02:31]}  f5 {[%clk 0:02:59]} 13. exf5 {[%clk 0:02:25]}  gxf5 {[%clk 0:02:59]} 14. f4 {[%clk 0:02:25]}  e4 {[%clk 0:02:58]} 15. Rfd1 {[%clk 0:02:11]}  Nf6 {[%clk 0:02:58]} 16. Bd4 {[%clk 0:01:46]}  a6 {[%clk 0:02:55]} 17. Be5 {[%clk 0:01:44]}  Rg8 {[%clk 0:02:53]} 18. g3 {[%clk 0:01:41]}  Bd7 {[%clk 0:02:41]} 19. Bc4 {[%clk 0:01:40]}  Ng4 {[%clk 0:02:32]} 20. d6 {[%clk 0:01:25]}  Nxe5 {[%clk 0:02:29]} 21. Bxg8+ {[%clk 0:01:24]}  Qxg8 {[%clk 0:02:26]} 22. fxe5 {[%clk 0:01:24]}  Bxe5 {[%clk 0:02:26]} 23. dxe7 {[%clk 0:01:22]}  Bc6 {[%clk 0:02:24]} 24. Qd8 {[%clk 0:01:14]}  Bf6 {[%clk 0:02:21]} 25. Qxg8+ {[%clk 0:00:59]}  Kxg8 {[%clk 0:02:21]} 26. Nd5 {[%clk 0:00:46]}  Be5 {[%clk 0:02:12]} 27. Nb6 {[%clk 0:00:22]}  Re8 {[%clk 0:02:07]} 28. Nc4 {[%clk 0:00:19]}  Bf6 {[%clk 0:02:04]} 29. Rd8 {[%clk 0:00:16]}  Rxd8 {[%clk 0:02:04]} 30. exd8=Q+ {[%clk 0:00:16]}  Bxd8 {[%clk 0:02:04]} 31. Rd1 {[%clk 0:00:15]}  Bf6 {[%clk 0:02:03]} 32. b3 {[%clk 0:00:14]}  Kf7 {[%clk 0:02:02]} 33. Kf2 {[%clk 0:00:14]}  Ke6 {[%clk 0:02:02]} 34. Ke3 {[%clk 0:00:14]}  Bg5+ {[%clk 0:01:54]} 35. Kd4 {[%clk 0:00:12]}  f4 {[%clk 0:01:54]} 36. gxf4 {[%clk 0:00:11]}  Bxf4 {[%clk 0:01:55]} 37. Na5 {[%clk 0:00:10]}  Bd5 {[%clk 0:01:52]} 38. Re1 {[%clk 0:00:08]}  Be5+ {[%clk 0:01:49]} 39. Ke3 {[%clk 0:00:08]}  Bxh2 {[%clk 0:01:48]} 40. Nc4 {[%clk 0:00:07]}  Bxc4 {[%clk 0:01:35]} 41. bxc4 {[%clk 0:00:06]}  Ke5 {[%clk 0:01:36]} 42. Rh1 {[%clk 0:00:03]}  Bf4+ {[%clk 0:01:36]} 43. Ke2 {[%clk 0:00:03]}  Bg5 {[%clk 0:01:34]} 44. Rd1 {[%clk 0:00:01]}  c6 {[%clk 0:01:29]} 45. Rd7 {[%clk 0:00:01]}  a5 {[%clk 0:01:29]} 0-1


[Site "https://www.chess.com"]

[Event "Titled Tuesday Blitz February 21 Late 2023"]
[White "Delgado Rosas, Fatima Alexandra"]
[Black "Adel, Sara"]
[WhiteFideId "6603963"]
[BlackFideId "10616764"]
[WhiteElo "1500"]
[BlackElo "1739"]
[Result "0-1"]
[Round "09"]
[TimeControl "180+2"]
[Date "2023.02.21"]
[WhiteClock "0:02:22"]
[BlackClock "0:02:40"]

1. d4 {[%clk 0:02:58]}  Nf6 {[%clk 0:02:56]} 2. c4 {[%clk 0:02:52]}  g6 {[%clk 0:02:51]} 3. Nc3 {[%clk 0:02:51]}  Bg7 {[%clk 0:02:51]} 4. Nf3 {[%clk 0:02:52]}  d6 {[%clk 0:02:52]} 5. g3 {[%clk 0:02:52]}  O-O {[%clk 0:02:52]} 6. Bg2 {[%clk 0:02:53]}  Nc6 {[%clk 0:02:53]} 7. O-O {[%clk 0:02:53]}  e5 {[%clk 0:02:53]} 8. d5 {[%clk 0:02:54]}  Ne7 {[%clk 0:02:52]} 9. e4 {[%clk 0:02:54]}  Ne8 {[%clk 0:02:53]} 10. Rb1 {[%clk 0:02:53]}  f5 {[%clk 0:02:53]} 11. Nd2 {[%clk 0:02:52]}  f4 {[%clk 0:02:53]} 12. f3 {[%clk 0:02:52]}  h5 {[%clk 0:02:51]} 13. b4 {[%clk 0:02:49]}  g5 {[%clk 0:02:51]} 14. Nb3 {[%clk 0:02:48]}  g4 {[%clk 0:02:50]} 15. gxf4 {[%clk 0:02:47]}  exf4 {[%clk 0:02:50]} 16. Bb2 {[%clk 0:02:45]}  Ng6 {[%clk 0:02:48]} 17. Kh1 {[%clk 0:02:41]}  Qh4 {[%clk 0:02:46]} 18. Qe1 {[%clk 0:02:39]}  g3 {[%clk 0:02:46]} 19. h3 {[%clk 0:02:27]}  Bxh3 {[%clk 0:02:45]} 20. Rg1 {[%clk 0:02:22]}  Bg4+ {[%clk 0:02:40]} 0-1


[Site "https://www.chess.com"]

[Event "Titled Tuesday Blitz February 21 Late 2023"]
[White "Mitrovic, Darko R"]
[Black "Romero Ruscalleda, Josep"]
[WhiteFideId "927023"]
[BlackFideId "2231859"]
[WhiteElo "2220"]
[BlackElo "2160"]
[Result "1-0"]
[Round "09"]
[TimeControl "180+2"]
[Date "2023.02.21"]
[WhiteClock "0:00:10"]
[BlackClock "0:01:11"]

1. d4 {[%clk 0:02:50]}  g6 {[%clk 0:03:00]} 2. Nf3 {[%clk 0:02:50]}  Bg7 {[%clk 0:03:01]} 3. g3 {[%clk 0:02:50]}  d6 {[%clk 0:03:01]} 4. Bg2 {[%clk 0:02:50]}  Nf6 {[%clk 0:03:01]} 5. O-O {[%clk 0:02:51]}  O-O {[%clk 0:03:00]} 6. c4 {[%clk 0:02:51]}  Bf5 {[%clk 0:02:59]} 7. Nc3 {[%clk 0:02:50]}  Qc8 {[%clk 0:02:58]} 8. d5 {[%clk 0:02:43]}  Ne4 {[%clk 0:02:57]} 9. Nxe4 {[%clk 0:02:34]}  Bxe4 {[%clk 0:02:56]} 10. Nd4 {[%clk 0:02:28]}  Bxg2 {[%clk 0:02:54]} 11. Kxg2 {[%clk 0:02:27]}  c5 {[%clk 0:02:52]} 12. Nf3 {[%clk 0:02:23]}  a6 {[%clk 0:02:50]} 13. a4 {[%clk 0:02:22]}  Nd7 {[%clk 0:02:48]} 14. a5 {[%clk 0:02:13]}  b5 {[%clk 0:02:43]} 15. axb6 {[%clk 0:02:10]}  Nxb6 {[%clk 0:02:43]} 16. Qc2 {[%clk 0:02:07]}  Qg4 {[%clk 0:02:39]} 17. e4 {[%clk 0:02:03]}  f5 {[%clk 0:02:32]} 18. Bf4 {[%clk 0:01:38]}  h5 {[%clk 0:01:52]} 19. h3 {[%clk 0:01:36]}  fxe4 {[%clk 0:01:49]} 20. hxg4 {[%clk 0:01:35]}  exf3+ {[%clk 0:01:49]} 21. Kg1 {[%clk 0:01:10]}  hxg4 {[%clk 0:01:49]} 22. Qxg6 {[%clk 0:00:59]}  Rf6 {[%clk 0:01:49]} 23. Qxg4 {[%clk 0:00:54]}  Kf7 {[%clk 0:01:49]} 24. Qh5+ {[%clk 0:00:44]}  Rg6 {[%clk 0:01:45]} 25. Rae1 {[%clk 0:00:37]}  Bf6 {[%clk 0:01:39]} 26. b3 {[%clk 0:00:28]}  a5 {[%clk 0:01:35]} 27. Qxf3 {[%clk 0:00:23]}  a4 {[%clk 0:01:35]} 28. bxa4 {[%clk 0:00:21]}  Rxa4 {[%clk 0:01:34]} 29. Rb1 {[%clk 0:00:18]}  Nxc4 {[%clk 0:01:32]} 30. Rb8 {[%clk 0:00:16]}  Ra3 {[%clk 0:01:24]} 31. Qe4 {[%clk 0:00:13]}  Rc3 {[%clk 0:01:12]} 32. Qe6+ {[%clk 0:00:11]}  Kg7 {[%clk 0:01:11]} 33. Qg8# {[%clk 0:00:10]} 1-0


[Site "https://www.chess.com"]

[Event "Titled Tuesday Blitz February 21 Late 2023"]
[White "Gamboa, Juan Pablo"]
[Black "Huang, Alex"]
[WhiteFideId "105180"]
[BlackFideId "4302508"]
[WhiteElo "2224"]
[BlackElo "2009"]
[Result "1/2-1/2"]
[Round "09"]
[TimeControl "180+2"]
[Date "2023.02.21"]
[WhiteClock "0:00:28"]
[BlackClock "0:00:13"]

1. c4 {[%clk 0:02:59]}  e5 {[%clk 0:02:59]} 2. Nc3 {[%clk 0:02:59]}  d6 {[%clk 0:03:00]} 3. g3 {[%clk 0:02:59]}  f5 {[%clk 0:03:00]} 4. d4 {[%clk 0:02:58]}  e4 {[%clk 0:02:59]} 5. f3 {[%clk 0:02:58]}  exf3 {[%clk 0:02:58]} 6. Nxf3 {[%clk 0:02:58]}  Nf6 {[%clk 0:02:59]} 7. Bg2 {[%clk 0:02:58]}  Be7 {[%clk 0:02:54]} 8. O-O {[%clk 0:02:58]}  O-O {[%clk 0:02:54]} 9. Qd3 {[%clk 0:02:59]}  c6 {[%clk 0:02:53]} 10. e4 {[%clk 0:02:58]}  fxe4 {[%clk 0:02:53]} 11. Nxe4 {[%clk 0:02:58]}  Nxe4 {[%clk 0:02:49]} 12. Qxe4 {[%clk 0:02:58]}  Bf5 {[%clk 0:02:50]} 13. Qe2 {[%clk 0:02:49]}  Bf6 {[%clk 0:02:42]} 14. Be3 {[%clk 0:02:41]}  Qe7 {[%clk 0:02:28]} 15. Rae1 {[%clk 0:02:39]}  Nd7 {[%clk 0:02:24]} 16. Qd2 {[%clk 0:02:39]}  Bg6 {[%clk 0:02:16]} 17. Bf4 {[%clk 0:02:33]}  Qd8 {[%clk 0:01:56]} 18. Bxd6 {[%clk 0:02:33]}  Re8 {[%clk 0:01:56]} 19. Rxe8+ {[%clk 0:02:30]}  Qxe8 {[%clk 0:01:56]} 20. Re1 {[%clk 0:02:24]}  Qf7 {[%clk 0:01:55]} 21. d5 {[%clk 0:02:19]}  cxd5 {[%clk 0:01:51]} 22. Qxd5 {[%clk 0:02:07]}  Qxd5 {[%clk 0:01:44]} 23. cxd5 {[%clk 0:02:05]}  Nb6 {[%clk 0:01:45]} 24. Ne5 {[%clk 0:02:02]}  Re8 {[%clk 0:01:25]} 25. Kf2 {[%clk 0:01:59]}  Nc8 {[%clk 0:01:13]} 26. Bb8 {[%clk 0:01:50]}  Bf5 {[%clk 0:01:02]} 27. g4 {[%clk 0:01:34]}  Bh4+ {[%clk 0:00:59]} 28. Kf1 {[%clk 0:01:29]}  Bxe1 {[%clk 0:00:59]} 29. Kxe1 {[%clk 0:01:29]}  Bxg4 {[%clk 0:00:45]} 30. Kf2 {[%clk 0:01:29]}  Bf5 {[%clk 0:00:40]} 31. Kg3 {[%clk 0:01:19]}  a6 {[%clk 0:00:37]} 32. Kf4 {[%clk 0:01:19]}  g6 {[%clk 0:00:37]} 33. h4 {[%clk 0:01:16]}  Nb6 {[%clk 0:00:32]} 34. Bc7 {[%clk 0:01:11]}  Na4 {[%clk 0:00:29]} 35. d6 {[%clk 0:01:09]}  Nc5 {[%clk 0:00:26]} 36. Bd5+ {[%clk 0:01:05]}  Kg7 {[%clk 0:00:24]} 37. b4 {[%clk 0:00:41]}  Be6 {[%clk 0:00:18]} 38. bxc5 {[%clk 0:00:37]}  Bxd5 {[%clk 0:00:18]} 39. d7 {[%clk 0:00:37]}  Rf8+ {[%clk 0:00:18]} 40. Ke3 {[%clk 0:00:37]}  Kf6 {[%clk 0:00:15]} 41. d8=Q+ {[%clk 0:00:36]}  Rxd8 {[%clk 0:00:15]} 42. Bxd8+ {[%clk 0:00:36]}  Kxe5 {[%clk 0:00:16]} 43. Be7 {[%clk 0:00:37]}  Bxa2 {[%clk 0:00:16]} 44. Kd3 {[%clk 0:00:36]}  Bd5 {[%clk 0:00:16]} 45. Kc3 {[%clk 0:00:36]}  h6 {[%clk 0:00:15]} 46. Kb4 {[%clk 0:00:37]}  Kf5 {[%clk 0:00:15]} 47. Ka5 {[%clk 0:00:36]}  Kg4 {[%clk 0:00:15]} 48. Kb6 {[%clk 0:00:37]}  g5 {[%clk 0:00:16]} 49. hxg5 {[%clk 0:00:35]}  hxg5 {[%clk 0:00:17]} 50. Kc7 {[%clk 0:00:28]}  Kf4 {[%clk 0:00:17]} 51. Kd6 {[%clk 0:00:27]}  g4 {[%clk 0:00:17]} 52. Bf6 {[%clk 0:00:27]}  g3 {[%clk 0:00:17]} 53. Be5+ {[%clk 0:00:28]}  Kf3 {[%clk 0:00:17]} 54. Bxg3 {[%clk 0:00:28]}  Kxg3 {[%clk 0:00:17]} 55. Kxd5 {[%clk 0:00:28]}  a5 {[%clk 0:00:16]} 56. Kc4 {[%clk 0:00:28]}  Kf4 {[%clk 0:00:16]} 57. Kb5 {[%clk 0:00:28]}  Ke5 {[%clk 0:00:16]} 58. Kxa5 {[%clk 0:00:28]}  Ke6 {[%clk 0:00:13]} 59. Kb5 {[%clk 0:00:26]}  Kd5 {[%clk 0:00:14]} 60. Kb6 {[%clk 0:00:26]}  Kc4 {[%clk 0:00:13]} 61. c6 {[%clk 0:00:27]}  bxc6 {[%clk 0:00:13]} 62. Kxc6 {[%clk 0:00:28]} 1/2-1/2


[Site "https://www.chess.com"]

[Event "Titled Tuesday Blitz February 21 Late 2023"]
[White "Dias, Joao Batista"]
[Black "Melikyan, Gnel"]
[WhiteFideId "2108240"]
[BlackFideId "54109990"]
[WhiteElo "1796"]
[BlackElo "2238"]
[Result "0-1"]
[Round "09"]
[TimeControl "180+2"]
[Date "2023.02.21"]
[WhiteClock "0:00:17"]
[BlackClock "0:00:25"]

1. e4 {[%clk 0:02:51]}  Nh6 {[%clk 0:02:59]} 2. d4 {[%clk 0:02:49]}  d5 {[%clk 0:02:59]} 3. e5 {[%clk 0:02:48]}  c5 {[%clk 0:02:58]} 4. Bxh6 {[%clk 0:02:47]}  gxh6 {[%clk 0:02:57]} 5. c3 {[%clk 0:02:48]}  Qb6 {[%clk 0:02:57]} 6. Qb3 {[%clk 0:02:46]}  c4 {[%clk 0:02:57]} 7. Qxb6 {[%clk 0:02:45]}  axb6 {[%clk 0:02:57]} 8. f4 {[%clk 0:02:42]}  b5 {[%clk 0:02:57]} 9. a3 {[%clk 0:02:41]}  Nc6 {[%clk 0:02:57]} 10. Nd2 {[%clk 0:02:40]}  b4 {[%clk 0:02:56]} 11. Ngf3 {[%clk 0:02:31]}  b5 {[%clk 0:02:47]} 12. Be2 {[%clk 0:02:24]}  bxc3 {[%clk 0:02:43]} 13. bxc3 {[%clk 0:02:23]}  e6 {[%clk 0:02:44]} 14. Nb1 {[%clk 0:02:17]}  b4 {[%clk 0:02:42]} 15. cxb4 {[%clk 0:02:17]}  Bxb4+ {[%clk 0:02:41]} 16. Kf2 {[%clk 0:02:17]}  Bd7 {[%clk 0:02:38]} 17. Rc1 {[%clk 0:02:16]}  Ke7 {[%clk 0:02:35]} 18. a4 {[%clk 0:02:02]}  Rhb8 {[%clk 0:02:25]} 19. Nc3 {[%clk 0:02:01]}  Na5 {[%clk 0:02:24]} 20. Bd1 {[%clk 0:01:41]}  Nb3 {[%clk 0:02:10]} 21. Bxb3 {[%clk 0:01:41]}  cxb3 {[%clk 0:02:10]} 22. Rab1 {[%clk 0:01:39]}  Ba3 {[%clk 0:01:59]} 23. Rd1 {[%clk 0:01:35]}  b2 {[%clk 0:01:52]} 24. Ne1 {[%clk 0:01:28]}  Rb3 {[%clk 0:01:47]} 25. Nb5 {[%clk 0:01:23]}  Bxb5 {[%clk 0:01:13]} 26. axb5 {[%clk 0:01:22]}  Rc8 {[%clk 0:01:12]} 27. Ke2 {[%clk 0:00:57]}  Rxb5 {[%clk 0:00:57]} 28. Nd3 {[%clk 0:00:56]}  Rc4 {[%clk 0:00:51]} 29. Rd2 {[%clk 0:00:40]}  Rxd4 {[%clk 0:00:49]} 30. Ke3 {[%clk 0:00:38]}  Re4+ {[%clk 0:00:42]} 31. Kf2 {[%clk 0:00:34]}  Rb3 {[%clk 0:00:39]} 32. g3 {[%clk 0:00:31]}  Rd4 {[%clk 0:00:33]} 33. Ke2 {[%clk 0:00:30]}  Re4+ {[%clk 0:00:31]} 34. Kf2 {[%clk 0:00:29]}  Rc4 {[%clk 0:00:31]} 35. Ke2 {[%clk 0:00:28]}  Rc1 {[%clk 0:00:22]} 36. Rbxb2 {[%clk 0:00:24]}  Bxb2 {[%clk 0:00:20]} 37. Rxb2 {[%clk 0:00:23]}  Rxb2+ {[%clk 0:00:20]} 38. Nxb2 {[%clk 0:00:23]}  Rh1 {[%clk 0:00:21]} 39. Kf3 {[%clk 0:00:23]}  Rxh2 {[%clk 0:00:21]} 40. Nd3 {[%clk 0:00:23]}  Rd2 {[%clk 0:00:21]} 41. Ke3 {[%clk 0:00:20]}  Rxd3+ {[%clk 0:00:21]} 42. Kxd3 {[%clk 0:00:20]}  Kd7 {[%clk 0:00:22]} 43. Kd4 {[%clk 0:00:21]}  Kc6 {[%clk 0:00:23]} 44. g4 {[%clk 0:00:21]}  h5 {[%clk 0:00:22]} 45. gxh5 {[%clk 0:00:21]}  h6 {[%clk 0:00:22]} 46. Kc3 {[%clk 0:00:18]}  Kc5 {[%clk 0:00:22]} 47. Kd3 {[%clk 0:00:19]}  d4 {[%clk 0:00:22]} 48. Ke4 {[%clk 0:00:18]}  Kc4 {[%clk 0:00:23]} 49. f5 {[%clk 0:00:19]}  d3 {[%clk 0:00:24]} 50. fxe6 {[%clk 0:00:17]}  fxe6 {[%clk 0:00:24]} 51. Ke3 {[%clk 0:00:17]}  Kc3 {[%clk 0:00:25]} 52. Kf4 {[%clk 0:00:17]}  d2 {[%clk 0:00:25]} 0-1


[Site "https://www.chess.com"]